fUST/lending_fUST_20250904
["ID","MTS","AMOUNT","RATE_DAILY","PERIOD"]
[383502386,1756962664708,-480.0,0.00014789,2]
[383502387,1756962664717,-480.0,0.00014789,2]
[383502388,1756962664726,-151.0,0.000149,2]
[383502389,1756962664735,-174.38003416,0.000149,2]
[383502390,1756962664745,-590.69099,0.00014904,2]
[383502391,1756962664755,-480.0,0.00014953,2]
[383502392,1756962664763,-480.0,0.00014953,2]
[383502393,1756962664773,-569.95,0.00014953,2]
[383502394,1756962664782,-480.0,0.00014953,2]
[383502395,1756962664792,-898.15,0.00014953,2]
[383502396,1756962664802,-1473.04,0.00014953,2]
[383502397,1756962664811,-546.64705247,0.00014953,2]
[383502398,1756962664821,-361.75342462,0.00014953,2]
[383502399,1756962664830,-480.0,0.00014953,2]
[383502400,1756962664840,-500.0,0.00014954,2]
[383502401,1756962664850,-480.0,0.00014959,2]
[383502402,1756962664859,-290.82115292,0.00014959,2]
[383502403,1756962664869,-954.45,0.00014959,2]
[383502404,1756962664879,-1300.78,0.00014959,2]
[383502405,1756962664889,-480.0,0.00014959,2]
[383502406,1756962664898,-666.01,0.00014959,2]
[383502407,1756962664908,-480.0,0.00014959,2]
[383502408,1756962664919,-1338.8,0.00014959,2]
[383502409,1756962664928,-480.0,0.00014959,2]
[383502410,1756962664938,-480.0,0.00014959,2]
[383502411,1756962664948,-480.0,0.00014959,2]
[383502412,1756962664958,-480.0,0.00014959,2]
[383502413,1756962664967,-480.0,0.00014959,2]
[383502414,1756962664976,-480.0,0.00014959,2]
[383502415,1756962664985,-480.0,0.00014959,2]
[383502416,1756962664994,-480.0,0.00014959,2]
[383502417,1756962665003,-480.0,0.00014959,2]
[383502418,1756962665013,-480.0,0.00014959,2]
[383502419,1756962665022,-480.0,0.00014959,2]
[383502420,1756962665032,-151.0,0.0001496,2]
[383502421,1756962665042,-480.0,0.0001496,2]
[383502422,1756962665051,-480.0,0.0001496,2]
[383502423,1756962665060,-494.746955,0.0001496,2]
[383502424,1756962665069,-480.0,0.0001496,2]
[383502425,1756962665079,-480.0,0.0001496,2]
[383502426,1756962665089,-480.0,0.0001496,2]
[383502427,1756962665098,-1779.96,0.0001496,2]
[383502428,1756962665108,-582.52,0.0001496,2]
[383502429,1756962665117,-480.0,0.0001496,2]
[383502430,1756962665127,-480.0,0.0001496,2]
[383502431,1756962665136,-1358.60376219,0.0001496,2]
[383502432,1756962713606,6834.34964818,0.00013763,2]
[383502433,1756962713630,10000.01,0.00013763,2]
[383502434,1756962713653,10000.01,0.00013763,2]
[383502435,1756962713675,10000.01,0.00013763,2]
[383502436,1756962713697,10000.01,0.00013763,2]
[383502437,1756962713720,10000.01,0.00013763,2]
[383502438,1756962713743,10000.01,0.00013763,2]
[383502439,1756962713770,10000.01,0.00013763,2]
[383502440,1756962713792,10000.01,0.00013763,2]
[383502441,1756962713815,10000.01,0.00013763,2]
[383502442,1756962713837,10000.01,0.00013763,2]
[383502443,1756962730494,-412.04589364,0.00013489,2]
[383502444,1756962734251,-326.81215849,0.00013489,2]
[383502445,1756962734639,393.74,0.00012329,2]
[383502446,1756962737264,-300.0,0.00013489,2]
[383502447,1756962740149,-626.81215849,0.00013489,2]
[383502448,1756962742637,-300.0,0.00013489,2]
[383502449,1756962745081,527.69,0.00012329,2]
[383502450,1756962756251,439.74,0.00012329,2]
[383502451,1756962766908,366.45,0.00012329,2]
[383502452,1756962777350,305.37,0.00012329,2]
[383502453,1756962777986,-305.37,0.00013354,2]
[383502454,1756962780810,-504.55371734,0.00013354,2]
[383502455,1756962784528,-504.55371734,0.0001322,2]
[383502456,1756962787761,254.48,0.00012329,2]
[383502457,1756962798404,212.07,0.00012329,2]
[383502458,1756962808315,-808.83309873,0.00013354,2]
[383502459,1756962808964,176.72,0.00012329,2]
[383502460,1756962809460,-1.09061861,0.00013354,2]
[383502461,1756962811428,6000.0,0.00025,30]
[383502462,1756962819232,883.63,0.00012329,2]
[383502463,1756962846119,2000.0,0.00025,30]
[383502465,1756962906628,5000.0,0.0001525,6]
[383502466,1756962915631,5000.0,0.0001525,6]
[383502467,1756962931405,4372.26646086,0.0001525,6]
[383502468,1756962941078,5000.0,0.0001525,6]
[383502469,1756962965468,-168.0,0.0001322,2]
[383502470,1756962969868,-160.20889606,0.0001322,2]
[383502471,1756962971961,169.0,8.2e-07,2]
[383502472,1756963017899,481.71482128,0.00013088,2]
[383502473,1756963026780,480.0,0.00013088,2]
[383502474,1756963042883,373.47536958,0.00013088,2]
[383502475,1756963051229,481.71482128,0.00013088,2]
[383502476,1756963054098,680.6353268,0.00012734,2]
[383502477,1756963076402,481.71482128,0.00013088,2]
[383502478,1756963100811,481.71482128,0.00013088,2]
[383502480,1756963121138,666.0,0.00012749,2]
[383502481,1756963124561,481.71482128,0.00013088,2]
[383502482,1756963147691,481.71482128,0.00013088,2]
[383502483,1756963157296,481.71482128,0.00013088,2]
[383502484,1756963373648,343.21940425,0.00013088,2]
[383502485,1756963438418,3095.5939583,0.00012688,2]
[383502486,1756963444457,1000.0,0.00012688,2]
[383502490,1756963480360,171.5925,6.344e-05,2]
[383502491,1756963480569,171.5925,8.459e-05,2]
[383502492,1756963480780,171.5925,0.00010573,2]
[383502493,1756963480985,171.5925,0.00012688,2]
[383502494,1756963482442,901.29179348,0.000148,7]
[383502499,1756963529619,264.42701339,0.00012688,2]
[383502500,1756963529643,9735.57298661,0.00012688,2]
[383502503,1756963563643,203.1667515,0.00012688,2]
[383502504,1756963616496,61.27026189,0.00012682,2]
[383502505,1756963616519,239.90833291,0.00012682,2]
[383502515,1756963725509,9760.10166709,0.0001,2]
[383502516,1756963725534,10000.01,0.0001,2]
[383502517,1756963725560,10000.01,0.0001,2]
[383502518,1756963725586,10000.01,0.0001,2]
[383502519,1756963725612,840.31667647,0.0001,2]
[383502520,1756963731317,545.0,0.00027397,120]
[383502521,1756963748204,546.0,0.00027397,120]
[383502522,1756963761107,551.0,0.00027397,120]
[383502523,1756963782895,2351.70485645,0.0001525,6]
[383502524,1756963785086,269.45634433,0.00013088,2]
[383502525,1756963816727,-2867.68605107,0.00013254,2]
[383502526,1756963816758,-749.65580753,0.00013489,2]
[383502568,1756963832749,-379.39634684,0.000135,2]
[383502569,1756963832759,-176.91289056,0.00013599,2]
[383502570,1756963832769,-562.14233318,0.00013637,2]
[383502577,1756963838432,-637.85766682,0.00013637,2]
[383502578,1756963838442,-300.0,0.00013638,2]
[383502579,1756963838451,-300.0,0.00013638,2]
[383502580,1756963838461,-300.0,0.00013638,2]
[383502581,1756963838471,-300.0,0.00013638,2]
[383502582,1756963838480,-300.0,0.00013638,2]
[383502583,1756963838489,-11075.28401972,0.00013639,2]
[383502584,1756963838511,-15238.92052194,0.00013639,2]
[383502585,1756963838520,-5641.68034379,0.00013661,2]
[383502586,1756963838529,-2347.87260389,0.0001369,2]
[383502587,1756963838539,-500.0,0.00013695,2]
[383502588,1756963838548,-456.36249695,0.00013695,2]
[383502589,1756963838557,-500.0,0.00013695,2]
[383502590,1756963838566,-500.0,0.00013695,2]
[383502591,1756963838575,-500.0,0.00013695,2]
[383502592,1756963838584,-500.0,0.00013695,2]
[383502593,1756963838594,-481.93216748,0.00013695,2]
[383502594,1756963838603,-157.19715872,0.00013695,2]
[383502595,1756963838612,-500.0,0.00013695,2]
[383502596,1756963838621,-500.0,0.00013695,2]
[383502597,1756963838631,-500.0,0.00013695,2]
[383502598,1756963838640,-500.0,0.00013695,2]
[383502599,1756963838650,-500.0,0.00013695,2]
[383502600,1756963838660,-500.0,0.00013695,2]
[383502601,1756963838671,-321.56909832,0.00013695,2]
[383502602,1756963838684,-331.55452304,0.00013695,2]
[383502603,1756963838693,-500.0,0.00013695,2]
[383502604,1756963838702,-500.0,0.00013695,2]
[383502605,1756963838714,-500.0,0.00013695,2]
[383502606,1756963838724,-500.0,0.00013695,2]
[383502607,1756963838733,-500.0,0.00013695,2]
[383502608,1756963838742,-500.0,0.00013695,2]
[383502609,1756963838753,-500.0,0.00013695,2]
[383502610,1756963838764,-500.0,0.00013695,2]
[383502611,1756963838774,-500.0,0.00013695,2]
[383502612,1756963838785,-500.0,0.00013695,2]
[383502613,1756963838796,-500.0,0.00013695,2]
[383502614,1756963838805,-500.0,0.00013695,2]
[383502615,1756963838815,-500.0,0.00013695,2]
[383502616,1756963838824,-500.0,0.00013695,2]
[383502617,1756963838834,-500.0,0.00013695,2]
[383502618,1756963838843,-500.0,0.00013695,2]
[383502619,1756963838853,-500.0,0.00013695,2]
[383502620,1756963838864,-500.0,0.00013695,2]
[383502621,1756963838873,-500.0,0.00013695,2]
[383502622,1756963838883,-500.0,0.00013695,2]
[383502623,1756963838892,-500.0,0.00013695,2]
[383502624,1756963838901,-500.0,0.00013695,2]
[383502625,1756963838911,-500.0,0.00013695,2]
[383502626,1756963838920,-500.0,0.00013695,2]
[383502627,1756963838929,-500.0,0.00013695,2]
[383502628,1756963838939,-500.0,0.00013695,2]
[383502629,1756963838948,-500.0,0.00013695,2]
[383502630,1756963838957,-500.0,0.00013695,2]
[383502631,1756963838967,-500.0,0.00013695,2]
[383502632,1756963838976,-500.0,0.00013695,2]
[383502633,1756963838986,-500.0,0.00013695,2]
[383502634,1756963838995,-500.0,0.00013695,2]
[383502635,1756963839005,-500.0,0.00013695,2]
[383502636,1756963839014,-648.56547032,0.00013695,2]
[383502637,1756963839023,-580.00318717,0.00013695,2]
[383502638,1756963839032,-500.0,0.00013695,2]
[383502639,1756963839041,-500.0,0.00013695,2]
[383502640,1756963839051,-500.0,0.00013695,2]
[383502641,1756963839061,-500.0,0.00013695,2]
[383502642,1756963839070,-500.0,0.00013695,2]
[383502643,1756963839080,-500.0,0.00013695,2]
[383502644,1756963839090,-500.0,0.00013695,2]
[383502645,1756963839099,-500.0,0.00013695,2]
[383502646,1756963839109,-500.0,0.00013695,2]
[383502647,1756963839118,-500.0,0.00013695,2]
[383502648,1756963839128,-500.0,0.00013695,2]
[383502649,1756963839137,-547.99703242,0.00013696,2]
[383502650,1756963839147,-517.01463923,0.00013696,2]
[383502651,1756963839157,-517.01463923,0.00013696,2]
[383502652,1756963839166,-517.01463923,0.00013696,2]
[383502653,1756963839176,-517.01463923,0.00013696,2]
[383502654,1756963839186,-517.01463923,0.00013696,2]
[383502655,1756963839195,-517.01463923,0.00013696,2]
[383502656,1756963839205,-517.01463923,0.00013696,2]
[383502657,1756963839214,-517.01463923,0.00013696,2]
[383502658,1756963839224,-517.01463923,0.00013696,2]
[383502659,1756963839233,-517.01463923,0.00013696,2]
[383502660,1756963839243,-517.01463923,0.00013696,2]
[383502661,1756963839253,-517.01463923,0.00013696,2]
[383502662,1756963839262,-517.01463923,0.00013696,2]
[383502663,1756963839272,-517.01463923,0.00013696,2]
[383502664,1756963839281,-517.01463923,0.00013696,2]
[383502665,1756963839291,-517.01463923,0.00013696,2]
[383502666,1756963839300,-517.01463923,0.00013696,2]
[383502667,1756963839310,-517.01463923,0.00013696,2]
[383502668,1756963839321,-517.01463923,0.00013696,2]
[383502669,1756963839331,-517.01463923,0.00013696,2]
[383502670,1756963839340,-50000.0,0.00013696,2]
[383502671,1756963839350,-500.0,0.00013698,2]
[383502672,1756963839360,-480.0,0.00013698,2]
[383502673,1756963839370,-480.0,0.00013698,2]
[383502674,1756963839379,-480.0,0.00013698,2]
[383502675,1756963839389,-480.0,0.00013698,2]
[383502676,1756963839398,-480.0,0.00013698,2]
[383502677,1756963839407,-480.0,0.00013698,2]
[383502678,1756963839417,-480.0,0.00013698,2]
[383502679,1756963839426,-480.0,0.00013698,2]
[383502680,1756963839436,-480.0,0.00013698,2]
[383502681,1756963839445,-480.0,0.00013698,2]
[383502682,1756963839454,-480.0,0.00013698,2]
[383502683,1756963839464,-480.0,0.00013698,2]
[383502684,1756963839473,-480.0,0.00013698,2]
[383502685,1756963839482,-480.0,0.00013698,2]
[383502686,1756963839491,-480.0,0.00013698,2]
[383502687,1756963839501,-480.0,0.00013698,2]
[383502688,1756963839513,-480.0,0.00013698,2]
[383502689,1756963839523,-480.0,0.00013698,2]
[383502690,1756963839532,-480.0,0.00013698,2]
[383502691,1756963839542,-480.0,0.00013698,2]
[383502692,1756963839552,-480.0,0.00013698,2]
[383502693,1756963839562,-480.0,0.00013698,2]
[383502694,1756963839572,-480.0,0.00013698,2]
[383502695,1756963839581,-480.0,0.00013698,2]
[383502696,1756963839590,-480.0,0.00013698,2]
[383502697,1756963839600,-480.0,0.00013698,2]
[383502698,1756963839609,-480.0,0.00013698,2]
[383502699,1756963839619,-480.0,0.00013698,2]
[383502700,1756963839628,-480.0,0.00013698,2]
[383502701,1756963839638,-480.0,0.00013698,2]
[383502702,1756963839647,-480.0,0.00013698,2]
[383502703,1756963839657,-480.0,0.00013698,2]
[383502704,1756963839668,-480.0,0.00013698,2]
[383502705,1756963839681,-480.0,0.00013698,2]
[383502706,1756963839690,-480.0,0.00013698,2]
[383502707,1756963839700,-500.0,0.00013698,2]
[383502708,1756963839709,-480.0,0.00013698,2]
[383502709,1756963839720,-480.0,0.00013698,2]
[383502710,1756963839730,-480.0,0.00013698,2]
[383502711,1756963839740,-480.0,0.00013698,2]
[383502712,1756963839751,-480.0,0.00013698,2]
[383502713,1756963839761,-480.0,0.00013698,2]
[383502714,1756963839773,-480.0,0.00013698,2]
[383502715,1756963839783,-480.0,0.00013698,2]
[383502716,1756963839792,-480.0,0.00013698,2]
[383502717,1756963839802,-480.0,0.00013698,2]
[383502718,1756963839812,-481.39588725,0.00013698,2]
[383502719,1756963839821,-480.0,0.00013698,2]
[383502720,1756963839831,-480.0,0.00013698,2]
[383502721,1756963839841,-480.0,0.00013698,2]
[383502722,1756963839851,-480.0,0.00013698,2]
[383502723,1756963839861,-480.0,0.00013698,2]
[383502724,1756963839871,-480.0,0.00013698,2]
[383502725,1756963839880,-480.0,0.00013698,2]
[383502726,1756963839890,-480.0,0.00013698,2]
[383502727,1756963839900,-480.0,0.00013698,2]
[383502728,1756963839910,-480.0,0.00013698,2]
[383502729,1756963839920,-480.0,0.00013698,2]
[383502730,1756963839930,-480.0,0.00013698,2]
[383502731,1756963839939,-480.0,0.00013698,2]
[383502732,1756963839949,-480.0,0.00013698,2]
[383502733,1756963839960,-480.0,0.00013698,2]
[383502734,1756963839969,-480.0,0.00013698,2]
[383502735,1756963839980,-480.0,0.00013698,2]
[383502736,1756963839990,-480.0,0.00013698,2]
[383502737,1756963840000,-554.07900332,0.00013698,2]
[383502738,1756963840009,-480.0,0.00013698,2]
[383502739,1756963840019,-480.0,0.00013698,2]
[383502740,1756963840028,-703.74,0.00013698,2]
[383502741,1756963840038,-480.0,0.00013698,2]
[383502742,1756963840047,-480.0,0.00013698,2]
[383502743,1756963840057,-480.0,0.00013698,2]
[383502744,1756963840067,-480.0,0.00013698,2]
[383502745,1756963840076,-480.0,0.00013698,2]
[383502746,1756963840086,-480.0,0.00013698,2]
[383502747,1756963840096,-480.0,0.00013698,2]
[383502748,1756963840106,-480.0,0.00013698,2]
[383502749,1756963840115,-481.00548065,0.00013698,2]
[383502750,1756963840125,-480.0,0.00013698,2]
[383502751,1756963840135,-480.0,0.00013698,2]
[383502752,1756963840145,-480.0,0.00013698,2]
[383502753,1756963840155,-795.6,0.00013698,2]
[383502754,1756963840165,-480.0,0.00013698,2]
[383502755,1756963840173,-480.0,0.00013698,2]
[383502756,1756963840183,-480.0,0.00013698,2]
[383502758,1756963840193,-484.26534734,0.00013698,2]
[383502759,1756963840203,-1384.02,0.00013698,2]
[383502761,1756963840213,-481.80289398,0.00013698,2]
[383502763,1756963840222,-480.0,0.00013698,2]
[383502765,1756963840232,-480.0,0.00013698,2]
[383502767,1756963840242,-1591.8,0.00013698,2]
[383502768,1756963840251,-480.0,0.00013698,2]
[383502770,1756963840261,-480.0,0.00013698,2]
[383502772,1756963840271,-480.0,0.00013698,2]
[383502773,1756963840280,-1095.25,0.00013698,2]
[383502774,1756963840289,-501.16,0.00013698,2]
[383502775,1756963840299,-480.0,0.00013698,2]
[383502776,1756963840310,-480.0,0.00013698,2]
[383502777,1756963840319,-480.0,0.00013698,2]
[383502779,1756963840329,-488.42863507,0.00013698,2]
[383502781,1756963840339,-480.0,0.00013698,2]
[383502783,1756963840348,-480.0,0.00013698,2]
[383502785,1756963840357,-480.0,0.00013698,2]
[383502786,1756963840367,-482.15703864,0.00013698,2]
[383502787,1756963840377,-1164.12,0.00013698,2]
[383502789,1756963840386,-480.92475533,0.00013698,2]
[383502790,1756963840395,-482.35016649,0.00013698,2]
[383502791,1756963840406,-480.0,0.00013698,2]
[383502792,1756963840415,-480.0,0.00013698,2]
[383502793,1756963840424,-480.0,0.00013698,2]
[383502794,1756963840433,-480.0,0.00013698,2]
[383502796,1756963840443,-480.0,0.00013698,2]
[383502797,1756963840452,-480.0,0.00013698,2]
[383502798,1756963840462,-480.0,0.00013698,2]
[383502799,1756963840472,-480.0,0.00013698,2]
[383502800,1756963840482,-480.0,0.00013698,2]
[383502801,1756963840491,-480.0,0.00013698,2]
[383502802,1756963840501,-480.0,0.00013698,2]
[383502803,1756963840512,-480.0,0.00013698,2]
[383502804,1756963840522,-480.0,0.00013698,2]
[383502805,1756963840532,-483.21499205,0.00013698,2]
[383502806,1756963840542,-480.0,0.00013698,2]
[383502807,1756963840552,-481.23731496,0.00013698,2]
[383502808,1756963840563,-480.0,0.00013698,2]
[383502809,1756963840573,-480.0,0.00013698,2]
[383502810,1756963840582,-481.66436693,0.00013698,2]
[383502811,1756963840592,-480.0,0.00013698,2]
[383502812,1756963840603,-157.11653071,0.00013698,2]
[383502813,1756963840613,-1707.61,0.00013698,2]
[383502814,1756963840622,-461.81926655,0.00013698,2]
[383502815,1756963840633,-480.0,0.00013698,2]
[383502816,1756963840642,-480.0,0.00013698,2]
[383502817,1756963840651,-480.0,0.00013698,2]
[383502818,1756963840661,-480.0,0.00013698,2]
[383502819,1756963840672,-3428.79,0.00013698,2]
[383502820,1756963840683,-482.95878034,0.00013698,2]
[383502821,1756963840693,-480.0,0.00013698,2]
[383502822,1756963840702,-480.0,0.00013698,2]
[383502823,1756963840711,-480.0,0.00013698,2]
[383502824,1756963840723,-480.0,0.00013698,2]
[383502825,1756963840732,-527.78345291,0.00013698,2]
[383502826,1756963840742,-480.0,0.00013698,2]
[383502827,1756963840752,-480.0,0.00013698,2]
[383502828,1756963840761,-480.0,0.00013698,2]
[383502829,1756963840771,-481.70191099,0.00013698,2]
[383502830,1756963840781,-758.68,0.00013698,2]
[383502831,1756963840791,-480.0,0.00013698,2]
[383502832,1756963840801,-480.0,0.00013698,2]
[383502833,1756963840811,-480.0,0.00013698,2]
[383502834,1756963840821,-480.0,0.00013698,2]
[383502835,1756963840831,-480.0,0.00013698,2]
[383502836,1756963840841,-480.0,0.00013698,2]
[383502837,1756963840851,-481.79996414,0.00013698,2]
[383502838,1756963840861,-480.0,0.00013698,2]
[383502839,1756963840871,-480.0,0.00013698,2]
[383502840,1756963840880,-480.0,0.00013698,2]
[383502841,1756963840989,-651.21,0.00013698,2]
[383502842,1756963841017,-480.0,0.00013698,2]
[383502843,1756963841028,-534.42359675,0.00013698,2]
[383502844,1756963841037,-480.0,0.00013698,2]
[383502845,1756963841047,-480.0,0.00013698,2]
[383502846,1756963841057,-480.51329276,0.00013698,2]
[383502847,1756963841067,-934.39,0.00013698,2]
[383502848,1756963841076,-500.0,0.00013698,2]
[383502849,1756963841086,-501.37925764,0.00013698,2]
[383502850,1756963841096,-480.0,0.00013698,2]
[383502851,1756963841106,-869.39,0.00013698,2]
[383502852,1756963841116,-869.39,0.00013698,2]
[383502853,1756963841125,-869.39,0.00013698,2]
[383502854,1756963841135,-869.39,0.00013698,2]
[383502855,1756963841144,-481.92122701,0.00013698,2]
[383502856,1756963841154,-480.0,0.00013698,2]
[383502857,1756963841163,-482.0518208,0.00013698,2]
[383502858,1756963841172,-480.0,0.00013698,2]
[383502859,1756963841182,-480.0,0.00013698,2]
[383502860,1756963841193,-480.0,0.00013698,2]
[383502861,1756963841202,-480.0,0.00013698,2]
[383502862,1756963841212,-480.95506669,0.00013698,2]
[383502863,1756963841222,-480.0,0.00013698,2]
[383502864,1756963841231,-480.0,0.00013698,2]
[383502865,1756963841241,-500.0,0.00013698,2]
[383502866,1756963841251,-480.0,0.00013698,2]
[383502867,1756963841260,-1173.38,0.00013698,2]
[383502868,1756963841270,-480.0,0.00013698,2]
[383502869,1756963841279,-480.78755981,0.00013698,2]
[383502870,1756963841289,-483.5815512,0.00013698,2]
[383502871,1756963841299,-1569.65,0.00013698,2]
[383502872,1756963841308,-480.82564481,0.00013698,2]
[383502873,1756963841317,-480.0,0.00013698,2]
[383502874,1756963841327,-480.0,0.00013698,2]
[383502875,1756963841337,-481.84672492,0.00013698,2]
[383502876,1756963841352,-480.0,0.00013698,2]
[383502877,1756963841363,-481.31797832,0.00013698,2]
[383502878,1756963841372,-480.95832574,0.00013698,2]
[383502879,1756963841382,-480.0,0.00013698,2]
[383502880,1756963841391,-480.0,0.00013698,2]
[383502881,1756963841403,-619.42691926,0.00013698,2]
[383502882,1756963841412,-343.23449005,0.00013698,2]
[383502883,1756963841422,-481.52844129,0.00013698,2]
[383502884,1756963841431,-480.0,0.00013698,2]
[383502885,1756963841441,-480.0,0.00013698,2]
[383502886,1756963841450,-481.75557804,0.00013698,2]
[383502887,1756963841459,-1915.98,0.00013698,2]
[383502888,1756963841469,-484.74974097,0.00013698,2]
[383502889,1756963841479,-480.0,0.00013698,2]
[383502890,1756963841489,-1491.41,0.00013698,2]
[383502891,1756963841498,-480.86290007,0.00013698,2]
[383502892,1756963841508,-480.0,0.00013698,2]
[383502893,1756963841518,-480.0,0.00013698,2]
[383502894,1756963841528,-480.0,0.00013698,2]
[383502895,1756963841538,-480.0,0.00013698,2]
[383502896,1756963841548,-320.91649596,0.00013698,2]
[383502897,1756963841558,-480.0,0.00013698,2]
[383502898,1756963841568,-156.179,0.00013699,2]
[383502899,1756963841577,-24446.0431495,0.00013699,2]
[383502900,1756963841588,-800.194321,0.00013699,2]
[383502901,1756963841597,-1144.595212,0.00013699,2]
[383502902,1756963841607,-151.0,0.00013699,2]
[383502903,1756963841616,-151.0,0.00013699,2]
[383502904,1756963841626,-250.0,0.00013755,2]
[383502905,1756963841635,-250.0,0.00013755,2]
[383502906,1756963841645,-230.71053023,0.00013755,2]
[383502907,1756963841654,-187.78006525,0.00013755,2]
[383502908,1756963841664,-869.39,0.00013756,2]
[383502909,1756963841673,-869.39,0.00013758,2]
[383502910,1756963841683,-869.39,0.00013758,2]
[383502911,1756963841695,-500.0,0.00013759,2]
[383502912,1756963841706,-500.0,0.00013759,2]
[383502913,1756963841715,-869.39,0.00013759,2]
[383502914,1756963841724,-151.0,0.00013759,2]
[383502915,1756963841735,-500.0,0.00013759,2]
[383502916,1756963841745,-500.0,0.00013759,2]
[383502917,1756963841755,-151.0,0.00013759,2]
[383502918,1756963841765,-151.0,0.00013759,2]
[383502919,1756963841775,-151.0,0.00013759,2]
[383502920,1756963841785,-206.547104,0.00013759,2]
[383502921,1756963841795,-504.44782065,0.0001376,2]
[383502922,1756963841805,-480.0,0.0001376,2]
[383502923,1756963841815,-480.0,0.0001376,2]
[383502924,1756963841825,-869.39,0.0001376,2]
[383502925,1756963841835,-869.39,0.0001376,2]
[383502926,1756963841845,-869.39,0.0001376,2]
[383502927,1756963841855,-481.64239915,0.00013761,2]
[383502928,1756963841865,-481.56537606,0.00013761,2]
[383502929,1756963841877,-480.0,0.00013761,2]
[383502930,1756963841887,-482.72373563,0.00013761,2]
[383502931,1756963841897,-480.0,0.00013761,2]
[383502932,1756963841907,-480.0,0.00013761,2]
[383502933,1756963841916,-480.0,0.00013761,2]
[383502934,1756963841926,-480.0,0.00013761,2]
[383502935,1756963841935,-480.0,0.00013761,2]
[383502936,1756963841945,-481.54056564,0.00013761,2]
[383502937,1756963841955,-480.0,0.00013761,2]
[383502938,1756963841965,-480.0,0.00013761,2]
[383502939,1756963841974,-480.0,0.00013761,2]
[383502940,1756963841983,-480.0,0.00013761,2]
[383502941,1756963841992,-480.0,0.00013761,2]
[383502942,1756963842002,-480.0,0.00013761,2]
[383502943,1756963842011,-481.10739346,0.00013761,2]
[383502944,1756963842021,-483.83290046,0.00013761,2]
[383502945,1756963842030,-480.0,0.00013761,2]
[383502946,1756963842040,-480.0,0.00013761,2]
[383502947,1756963842050,-480.0,0.00013761,2]
[383502948,1756963842059,-479.999999,0.00013761,2]
[383502949,1756963842070,-480.0,0.00013761,2]
[383502950,1756963842079,-480.0,0.00013761,2]
[383502951,1756963842089,-480.0,0.00013761,2]
[383502952,1756963842098,-480.0,0.00013761,2]
[383502953,1756963842108,-480.0,0.00013761,2]
[383502954,1756963842118,-480.0,0.00013761,2]
[383502955,1756963842127,-480.0,0.00013761,2]
[383502956,1756963842137,-480.0,0.00013761,2]
[383502957,1756963842146,-480.0,0.00013761,2]
[383502958,1756963842156,-480.0,0.00013761,2]
[383502959,1756963842165,-480.0,0.00013761,2]
[383502960,1756963842175,-480.0,0.00013761,2]
[383502961,1756963842185,-480.0,0.00013761,2]
[383502962,1756963842195,-480.0,0.00013761,2]
[383502963,1756963842204,-480.0,0.00013761,2]
[383502964,1756963842213,-480.0,0.00013761,2]
[383502965,1756963842222,-201.64979696,0.00013761,2]